bitfinex/quotes_ETHUSD_20240824
["timestamp","ask_amount","ask_price","bid_price","bid_amount"]
[1724461536777,3.62713,2757.0,2756.6,2.3246085]
[1724461536976,3.62703,2757.1,2756.6,2.3246085]
[1724461537177,3.62752,2756.7,2756.6,2.3246085]
[1724461537690,3.62737,2756.9,2756.6,2.3246085]
[1724461538022,7.25475,2756.9,2756.6,2.3246085]
[1724461538182,3.62742,2756.8,2756.6,2.3246085]
[1724461538921,0.0824679,2756.7,2756.6,2.3246085]
[1724461539129,3.62742,2756.8,2756.6,2.3246085]
[1724461539439,0.0824679,2756.7,2756.6,2.3246085]
[1724461539659,7.3375079,2756.7,2756.6,8.5e-06]
[1724461539794,7.98876579,2756.7,2756.6,8.5e-06]
[1724461539995,8.07123369,2756.7,2756.6,8.5e-06]
[1724461540697,3.7099879,2756.7,2756.6,8.5e-06]
[1724461543381,7.3375079,2756.7,2756.6,8.5e-06]
[1724461545945,15.24139204,2756.7,2756.6,8.5e-06]
[1724461546247,17.86656541,2756.7,2756.6,8.5e-06]
[1724461546455,17.86654391,2756.7,2756.6,8.5e-06]
[1724461546657,20.20354872,2756.7,2756.6,8.5e-06]
[1724461548146,18.70223271,2756.7,2756.6,8.5e-06]
[1724461548916,16.30203271,2756.7,2756.6,8.5e-06]
[1724461550140,7.3375079,2756.7,2756.6,8.5e-06]
[1724461551296,14.5925479,2756.7,2756.6,8.5e-06]
[1724461551647,20.6202679,2756.7,2756.6,8.5e-06]
[1724461551904,26.42163745,2756.7,2756.6,8.5e-06]
[1724461552187,24.1702679,2756.7,2756.6,8.5e-06]
[1724461552359,29.47655228,2756.7,2756.6,8.5e-06]
[1724461552564,26.84995447,2756.7,2756.6,8.5e-06]
[1724461555467,29.47655228,2756.7,2756.6,8.5e-06]
[1724461555658,26.84995447,2756.7,2756.6,8.5e-06]
[1724461556700,26.29995447,2756.7,2756.6,8.5e-06]
[1724461556867,20.27223447,2756.7,2756.6,8.5e-06]
[1724461557075,22.147269,2756.7,2756.6,8.5e-06]
[1724461557264,22.14723419,2756.7,2756.6,8.5e-06]
[1724461557963,22.71606729,2756.7,2756.6,8.5e-06]
[1724461558163,20.84106757,2756.7,2756.6,8.5e-06]
[1724461560255,25.01858757,2756.7,2756.6,8.5e-06]
[1724461560462,27.45648757,2756.7,2756.6,8.5e-06]
[1724461560673,27.83244689,2756.7,2756.6,8.5e-06]
[1724461560877,30.4574465,2756.7,2756.6,8.5e-06]
[1724461561196,27.83244689,2756.7,2756.6,8.5e-06]
[1724461561756,30.45974374,2756.7,2756.6,8.5e-06]
[1724461562200,27.83244689,2756.7,2756.6,8.5e-06]
[1724461562407,19.27978115,2756.7,2756.6,8.5e-06]
[1724461562711,22.53275774,2756.7,2756.6,8.5e-06]
[1724461563570,25.53275774,2756.7,2756.6,8.5e-06]
[1724461563905,25.53361359,2756.7,2756.6,8.5e-06]
[1724461564196,21.90609359,2756.7,2756.6,8.5e-06]
[1724461564406,19.46819359,2756.7,2756.6,8.5e-06]
[1724461564715,20.27531031,2756.7,2756.6,8.5e-06]
[1724461564912,9.78604801,2756.7,2756.6,8.5e-06]
[1724461565270,9.41014426,2756.7,2756.6,8.5e-06]
[1724461565473,9.78604978,2756.7,2756.6,8.5e-06]
[1724461566208,9.78604978,2756.7,2756.6,2.3014085]
[1724461566395,13.41356978,2756.7,2756.6,8.5e-06]
[1724461566568,15.11765476,2756.7,2756.6,8.5e-06]
[1724461566788,13.23794598,2756.7,2756.6,8.5e-06]
[1724461567321,15.49359652,2756.7,2756.6,8.5e-06]
[1724461567669,14.92476342,2756.7,2756.6,8.5e-06]
[1724461568689,12.66911288,2756.7,2756.6,8.5e-06]
[1724461568869,14.92476342,2756.7,2756.6,8.5e-06]
[1724461569728,12.66911288,2756.7,2756.6,8.5e-06]
[1724461570229,14.92728726,2756.7,2756.6,8.5e-06]
[1724461570583,9.04159288,2756.7,2756.6,8.5e-06]
[1724461570787,7.3375079,2756.7,2756.6,8.5e-06]
[1724461571284,9.21902159,2756.7,2756.6,8.5e-06]
[1724461571503,9.21895375,2756.7,2756.6,8.5e-06]
[1724461572227,5.2151933,2756.7,2756.6,8.5e-06]
[1724461572536,3.7099879,2756.7,2756.6,8.5e-06]
[1724461574513,0.0824679,2756.7,2756.6,8.5e-06]
[1724461574699,0.0824679,2756.7,2756.6,2.53154935]
[1724461574899,0.07439688,2756.7,2756.6,2.3014085]
[1724461575126,3.62737,2756.9,2756.6,2.3014085]
[1724461575327,0.07439688,2756.7,2756.6,2.3014085]
[1724461575495,0.07439688,2756.7,2756.6,2.53154935]
[1724461575691,7.25473,2756.9,2756.6,2.53154935]
[1724461575920,0.07439688,2756.7,2756.6,2.53154935]
[1724461576677,3.62736,2756.9,2756.6,2.53154935]
[1724461577114,0.07444006,2756.8,2756.6,2.53154935]
[1724461577445,0.07444006,2756.8,2756.7,0.25315494]
[1724461578207,0.07444006,2756.8,2756.7,2.65305494]
[1724461579697,3.62678,2757.3,2756.7,3.88067494]
[1724461579894,0.07203678,2757.2,2756.8,2.3999]
[1724461580094,3.62678,2757.3,2756.8,2.3999]
[1724461580338,0.0720361,2757.2,2757.0,2.3999]
[1724461580848,7.25308,2757.5,2757.0,2.3999]
[1724461580849,3.62652,2757.5,2757.0,2.3999]
[1724461581043,0.06964137,2757.1,2757.0,2.3999]
[1724461581247,3.62626,2757.7,2757.1,2.3999]
[1724461581471,3.62626,2757.7,2757.2,2.3999]
[1724461581671,3.62626,2757.7,2757.2,3.002589]
[1724461582148,3.62636,2757.6,2757.2,3.002589]
[1724461582392,3.62647,2757.5,2757.2,3.002589]
[1724461582567,3.62647,2757.5,2757.2,2.3999]
[1724461583097,3.62626,2757.7,2757.2,2.3999]
[1724461583391,3.62608,2757.8,2757.3,2.3999]
[1724461584741,3.62621,2757.7,2757.3,2.3999]
[1724461584951,3.62635,2757.6,2757.3,2.3999]
[1724461585256,3.62621,2757.7,2757.3,2.63989]
[1724461586554,3.626,2757.9,2757.3,2.63989]
[1724461586795,0.07037206,2757.6,2757.3,2.63989]
[1724461586997,3.626,2757.9,2757.3,2.63989]
[1724461587159,0.07054759,2757.5,2757.4,2.3999]
[1724461587361,3.62609,2757.8,2757.4,3.389236]
[1724461587685,0.07054759,2757.5,2757.4,3.389236]
[1724461587921,3.626,2757.9,2757.5,2.3999]
[1724461589164,3.62669,2757.4,2757.0,2.3999]
[1724461589364,3.62669,2757.4,2757.1,0.30279575]
[1724461589816,3.62664,2757.4,2757.1,0.30279575]
[1724461590368,0.07048403,2757.3,2757.1,0.30279575]
[1724461592202,7.25284,2757.6,2757.1,0.30279575]
[1724461592402,0.07036346,2757.2,2757.1,0.30279575]
[1724461592566,3.6264,2757.6,2757.1,0.30279575]
[1724461592770,3.6264,2757.6,2757.2,0.63298057]
[1724461592972,7.25283,2757.6,2757.2,0.63298057]
[1724461593296,3.6264,2757.6,2757.2,0.63298057]
[1724461594117,0.07047471,2757.5,2757.2,0.63298057]
[1724461594315,0.07047471,2757.5,2757.3,2.3999]
[1724461594622,0.07043155,2757.4,2757.3,2.3999]
[1724461595114,3.62613,2757.8,2757.3,2.3999]
[1724461595485,3.62613,2757.8,2757.1,3.92967575]
[1724461595486,3.62669,2757.4,2757.1,0.30279575]
[1724461595681,3.62669,2757.4,2756.9,3.02795749]
[1724461597650,0.07039296,2757.3,2756.9,6.65517749]
[1724461598189,0.07039296,2757.3,2756.9,3.02795749]
[1724461598411,7.25283,2757.6,2757.1,2.4285]
[1724461598610,0.0703498,2757.2,2757.1,2.4285]
[1724461598805,3.62653,2757.5,2757.1,3.09686775]
[1724461599345,3.62653,2757.5,2757.1,2.4285]
[1724461599518,0.07043612,2757.4,2757.1,2.4285]
[1724461600055,3.69704612,2757.4,2757.1,2.4285]
[1724461600344,3.62686,2757.2,2757.1,2.4285]
[1724461600646,3.69719613,2757.2,2757.1,2.4285]
[1724461600851,3.69719613,2757.2,2756.6,8.5e-06]
[1724461600852,7.25504,2756.7,2756.6,8.5e-06]
[1724461601054,20.05643939,2756.7,2756.6,8.5e-06]
[1724461601349,7.25762,2755.8,2755.4,1.8600085]
[1724461601499,3.62908,2755.6,2755.4,1.8600085]
[1724461601700,0.06957001,2755.5,2755.4,1.8600085]
[1724461602429,0.06957001,2755.5,2755.2,1.13332084]
[1724461603606,0.06957001,2755.5,2755.3,1.09554348]
[1724461603799,3.62875,2755.8,2755.3,1.09554348]
[1724461604032,0.06800902,2755.4,2755.3,1.09554348]
[1724461604351,3.62912,2755.5,2755.3,0.75554723]
[1724461604551,0.06803639,2755.4,2755.3,0.75554723]
[1724461604852,3.69726639,2755.4,2755.3,0.75554723]
[1724461606038,7.32649639,2755.4,2755.3,0.75554723]
[1724461607544,3.69726639,2755.4,2755.3,0.75554723]
[1724461607864,0.06803639,2755.4,2755.3,0.75554723]
[1724461609216,3.62888,2755.7,2755.2,2.4795]
[1724461609450,0.06795884,2755.4,2755.2,2.4795]
[1724461609662,3.62897,2755.6,2755.2,2.4795]
[1724461609825,0.06791562,2755.3,2755.0,3.62967]
[1724461610152,3.62911,2755.5,2755.0,3.62967]
[1724461610361,4.736768,2755.7,2755.0,3.62967]
[1724461610662,0.06799512,2755.6,2755.0,3.62967]
[1724461610860,3.69698512,2755.6,2755.0,3.52967]
[1724461611012,3.69698512,2755.6,2754.9,2.4795]
[1724461611013,3.62912,2755.5,2754.9,2.4795]
[1724461611210,4.231826,2755.5,2754.9,6.10935]
[1724461612061,4.231826,2755.5,2754.9,6.10937]
[1724461612423,3.62932,2755.4,2754.9,2.4795]
[1724461612731,3.62939,2755.3,2754.9,2.4795]
[1724461613042,0.06771579,2755.2,2754.9,2.4795]
[1724461613223,3.62939,2755.3,2754.9,2.4795]
[1724461613417,0.06766343,2755.1,2754.9,2.4795]
[1724461613617,3.62939,2755.3,2754.9,2.4795]
[1724461614117,0.06770666,2755.2,2754.9,2.4795]
[1724461614470,3.62939,2755.3,2754.9,2.4795]
[1724461614673,0.06766343,2755.1,2754.9,2.4795]
[1724461614953,0.06762019,2755.0,2754.9,2.4795]
[1724461615160,3.62933,2755.4,2754.9,2.4795]
[1724461615472,0.06774988,2755.3,2754.9,2.4795]
[1724461616290,3.69712988,2755.3,2754.9,2.4795]
[1724461617868,0.06774988,2755.3,2754.9,2.4795]
[1724461618091,0.06774988,2755.3,2754.9,6.10935]
[1724461618378,3.62888,2755.7,2755.1,7.25907]
[1724461618579,5.09963,2755.7,2755.1,3.62953]
[1724461618748,3.62898,2755.6,2755.0,3.62976]
[1724461618929,3.62898,2755.6,2754.9,9.73913]
[1724461619133,3.69684492,2755.5,2754.9,2.4795]
[1724461619327,3.62933,2755.4,2754.9,2.4795]
[1724461619527,3.69699847,2755.3,2754.9,2.4795]
[1724461620479,0.06760847,2755.3,2755.0,3.62974]
[1724461620661,0.06760847,2755.3,2755.1,3.62962]
[1724461620835,11.07864,2755.9,2755.2,2.2826]
[1724461621375,11.07864,2755.9,2755.2,5.91208]
[1724461621990,3.62874,2755.8,2755.2,5.91208]
[1724461622186,3.62874,2755.8,2755.2,2.2826]
[1724461622334,3.62874,2755.8,2755.2,5.91207]
[1724461622741,0.06779505,2755.7,2755.2,5.91207]
[1724461623177,11.07864,2755.9,2755.3,3.62936]
[1724461623384,0.06783826,2755.8,2755.3,3.62936]
[1724461625887,0.06783826,2755.8,2755.2,3.236759]
[1724461626035,3.69654826,2755.8,2755.2,3.236759]
[1724461626550,0.06783826,2755.8,2755.2,6.866229]
[1724461627384,3.69661826,2755.8,2755.2,6.866229]
[1724461627889,3.69661826,2755.8,2754.9,2.2826]
[1724461627890,3.62952,2755.2,2754.9,2.2826]
[1724461628239,0.06326756,2755.1,2754.9,2.2826]
[1724461628586,0.0631555,2755.0,2754.9,2.2826]
[1724461628782,3.62952,2755.2,2754.9,2.2826]
[1724461628949,0.0631555,2755.0,2754.9,2.2826]
[1724461629151,3.62952,2755.2,2754.9,2.2826]
[1724461629454,0.06319873,2755.1,2754.9,2.2826]
[1724461629654,3.62937,2755.3,2754.9,2.2826]
[1724461629858,0.0631555,2755.0,2754.9,2.2826]
[1724461630171,0.06310466,2755.0,2754.9,2.2826]
[1724461630480,3.62925,2755.4,2753.0,1.13332084]
[1724461630481,3.63001,2754.9,2754.3,2.2826]
[1724461630651,2.3939,2754.9,2753.9,0.1302385]
[1724461630854,3.63039,2754.6,2753.9,0.1302385]
[1724461631059,3.63051,2754.5,2753.9,0.1302385]
[1724461631258,3.69323362,2754.5,2753.9,0.68465535]
[1724461631941,0.06272362,2754.5,2753.9,0.68465535]
[1724461632144,0.06272362,2754.5,2753.9,4.31575535]
[1724461632387,0.06272362,2754.5,2753.9,3.7113385]
[1724461632605,0.06272362,2754.5,2753.2,2.0927]
[1724461632606,3.63168,2753.6,2752.7,2.2826]
[1724461632888,3.63183,2753.5,2752.8,3.63254]
[1724461633120,3.69372046,2753.5,2752.8,3.63254]
[1724461633285,3.63197,2753.4,2752.7,2.2826]
[1724461633463,3.63197,2753.4,2752.7,3.54359376]
[1724461633668,0.06180374,2753.3,2752.7,3.54359376]
[1724461634126,0.06180374,2753.3,2753.2,5.91473]
[1724461634323,3.63088,2754.2,2753.5,3.63167]
[1724461634621,3.69254042,2754.1,2753.5,3.63167]
[1724461634776,3.63117,2754.0,2753.3,3.6319]
[1724461634976,0.05938322,2753.9,2753.4,3.63178]
[1724461635172,3.63109,2754.0,2753.4,3.63178]
[1724461635396,0.05925082,2753.9,2753.4,3.63178]
[1724461635604,0.05925082,2753.9,2753.4,4.586421]
[1724461635812,3.63083,2754.2,2753.4,4.586421]
[1724461636320,0.05933737,2754.1,2753.4,4.586421]
[1724461636520,0.05933737,2754.1,2753.5,3.63171]
[1724461637404,0.05933737,2754.1,2753.6,3.6316]
[1724461637604,6.02424,2754.6,2753.7,3.99453]
[1724461637818,6.02424,2754.6,2753.7,7.62589]
[1724461637819,0.0593763,2754.0,2753.7,7.62589]
[1724461637979,3.63065,2754.4,2753.8,3.63129]
[1724461638173,0.0595061,2754.3,2753.8,5.97449]
[1724461638478,3.63024,2754.7,2753.9,3.6311]
[1724461638714,0.05946283,2754.2,2753.9,4.264846]
[1724461638940,3.63024,2754.7,2754.0,0.55]
[1724461639251,0.05965867,2754.6,2754.1,3.63093]
[1724461639520,0.362925,2755.3,2754.0,0.55]
[1724461639521,3.62941,2755.3,2754.6,3.63018]
[1724461639723,3.62914,2755.5,2754.7,3.63015]
[1724461639931,3.62914,2755.5,2754.8,3.70257847]
[1724461640433,3.62863,2755.9,2755.2,3.6294]
[1724461640723,3.62834,2756.1,2755.4,3.62923]
[1724461641027,3.62866,2755.9,2755.1,2.3432]
[1724461641194,3.62938,2755.3,2754.9,3.0]
[1724461641525,3.62973,2755.1,2754.4,2.3432]
[1724461641878,0.04626447,2755.0,2754.4,2.3432]
[1724461642079,3.67604447,2755.0,2754.4,3.603663]
[1724461642331,3.67604447,2755.0,2754.3,3.0]
[1724461642332,0.04626447,2755.0,2754.3,3.0]
[1724461642474,3.62991,2754.9,2754.3,3.0]
[1724461642680,0.04667756,2754.9,2754.3,3.0]
[1724461642960,3.6298,2755.0,2754.3,3.0]
[1724461643079,0.04663432,2754.8,2754.3,3.0]
[1724461643434,0.04659107,2754.7,2754.3,3.0]
[1724461643660,3.6298,2755.0,2754.3,3.0]
[1724461643960,0.04654782,2754.6,2753.9,2.3432]
[1724461644078,3.63016,2754.7,2753.9,2.3432]
[1724461644274,0.04639053,2754.5,2754.2,3.63073]
[1724461644508,3.62995,2754.9,2754.2,3.63073]
[1724461644823,4.222365,2754.9,2754.2,3.63073]
[1724461645128,0.04652028,2754.8,2754.3,3.63068]
[1724461646627,0.04652028,2754.8,2754.4,3.63053]
[1724461646825,0.04652028,2754.8,2754.3,3.63068]
[1724461647030,0.04652028,2754.8,2754.5,3.63041]
[1724461648161,0.0447829,2754.7,2754.4,0.55]
[1724461648473,0.04652028,2754.8,2754.4,0.55]
[1724461648623,0.04473965,2754.6,2754.4,0.55]
[1724461648823,0.04652028,2754.8,2754.4,0.55]
[1724461649218,0.0447829,2754.7,2754.4,0.55]
[1724461649415,3.63017,2754.7,2754.0,3.63096]
[1724461649622,0.04652028,2754.8,2754.2,3.63078]
[1724461649623,0.04473965,2754.6,2754.2,3.63078]
[1724461649837,3.67655028,2754.8,2754.2,3.63078]
[1724461650042,0.0446964,2754.5,2754.2,3.63078]
[1724461650296,3.67655028,2754.8,2754.2,3.63078]
[1724461650477,0.04465314,2754.4,2754.2,7.26151]
[1724461650626,0.04652028,2754.8,2754.5,3.63035]
[1724461650971,0.04652028,2754.8,2754.4,3.63043]
[1724461651176,3.67656028,2754.8,2754.1,5.8932]
[1724461651375,3.67655028,2754.8,2754.1,0.55]
[1724461651525,3.63037,2754.6,2753.9,7.18113]
[1724461651722,0.41248357,2754.7,2754.0,3.63108]
[1724461651934,0.04478529,2754.6,2754.1,0.55]
[1724461652490,3.63055,2754.4,2753.9,3.0]
[1724461652690,3.63055,2754.4,2753.7,3.63145]
[1724461652903,0.04463728,2754.3,2753.8,4.026302]
[1724461653187,3.63033,2754.6,2753.9,3.6311]
[1724461653390,0.0447238,2754.5,2753.9,3.6311]
[1724461653587,0.0447238,2754.5,2754.0,3.63106]
[1724461653900,0.0447238,2754.5,2754.1,3.63087]
[1724461654382,3.67659028,2754.8,2753.9,3.63111]
[1724461654691,3.63031,2754.6,2754.0,0.55]
[1724461655057,3.63031,2754.6,2754.0,4.18101]
[1724461655258,0.04466903,2754.5,2754.0,4.18101]
[1724461656100,0.04466903,2754.5,2754.1,3.63094]
[1724461656540,3.67659028,2754.8,2754.1,3.63094]
[1724461656541,0.04462577,2754.4,2754.1,3.63094]
[1724461656737,3.67659028,2754.8,2754.1,3.63094]
[1724461656984,4.63665131,2754.8,2754.1,3.63094]
[1724461657184,0.04475554,2754.7,2754.1,3.63094]
[1724461657395,0.04475554,2754.7,2754.2,3.63079]
[1724461657556,0.04475554,2754.7,2754.1,9.57179]
[1724461658456,0.04475554,2754.7,2754.1,5.94084]
[1724461658676,0.04475554,2754.7,2754.1,6.589924]
[1724461658879,0.04475554,2754.7,2754.1,10.220764]
[1724461659057,0.04475554,2754.7,2754.2,3.6308]
[1724461661400,0.04475554,2754.7,2754.3,3.6306]
[1724461661709,0.04652028,2754.8,2754.3,3.6306]
[1724461662269,0.04652028,2754.8,2754.5,3.63041]
[1724461662570,0.04471903,2754.7,2754.3,4.2895484]
[1724461662762,0.04652028,2754.8,2754.4,4.18052]
[1724461662967,0.04479659,2754.7,2754.4,4.18052]
[1724461663190,0.04652028,2754.8,2754.4,4.18052]
[1724461663381,0.04479659,2754.7,2754.4,5.02754884]
[1724461663594,0.04652028,2754.8,2754.4,5.02754884]
[1724461663791,0.04482856,2754.7,2754.4,5.02754884]
[1724461664103,0.04652028,2754.8,2754.4,5.02754884]
[1724461664276,0.04478531,2754.6,2754.4,5.02754884]
[1724461664512,0.04652028,2754.8,2754.5,0.56865172]
[1724461664695,0.04474205,2754.5,2754.4,5.02749884]
[1724461664896,0.04652028,2754.8,2754.4,5.02749884]
[1724461666070,0.04487419,2754.7,2754.4,5.02749884]
[1724461666271,0.04652028,2754.8,2754.4,5.02749884]
[1724461666511,0.04483094,2754.6,2754.4,5.02749884]
[1724461666715,0.04652028,2754.8,2754.5,0.56864672]
[1724461666914,0.04478769,2754.5,2754.4,5.02749884]
[1724461667090,0.04652028,2754.8,2754.3,0.6589684]
[1724461667420,0.04652028,2754.8,2753.4,0.75554723]
[1724461667421,0.04652028,2754.8,2754.2,6.63072]
[1724461667573,0.04484223,2754.7,2754.2,3.63072]
[1724461668175,0.04484223,2754.7,2754.2,7.26145]
[1724461668376,0.04484223,2754.7,2754.3,3.63067]
[1724461668619,0.04652028,2754.8,2754.3,3.63067]
[1724461668818,0.04477161,2754.6,2754.3,3.63067]
[1724461669115,0.04652028,2754.8,2754.4,3.63053]
[1724461669272,0.04472835,2754.5,2754.4,3.63053]
[1724461669473,0.04652028,2754.8,2754.4,4.18053]
[1724461670902,0.04652028,2754.8,2754.5,3.6304]
[1724461672917,0.04652028,2754.8,2754.5,3.63033]
[1724461673319,0.04481486,2754.7,2754.5,7.26066]
[1724461673489,0.04481486,2754.7,2754.5,3.63033]
[1724461673692,0.04652028,2754.8,2754.5,7.26067]
[1724461674019,2.2812,2754.7,2754.5,7.26067]
[1724461674237,2.2812,2754.7,2752.4,3.12598167]
[1724461674238,2.2812,2753.4,2752.7,2.53e-06]
[1724461674374,2.2812,2753.4,2751.9,2.28029778]
[1724461674375,3.78718088,2753.4,2751.9,3.63376]
[1724461674748,1.8824761,2753.6,2751.6,4.20311386]
[1724461674749,3.63333,2752.3,2751.6,6.69711909]
[1724461674879,5.91404,2752.7,2751.8,3.63386]
[1724461675075,0.04359068,2752.2,2751.4,2.31]
[1724461675405,2.32474735,2752.1,2751.1,0.76036561]
[1724461675723,2.32474735,2752.1,2751.5,3.63432]
[1724461675724,0.04354735,2752.1,2751.5,3.63432]
[1724461676074,3.63333,2752.3,2751.5,3.63432]
[1724461676280,3.63333,2752.3,2751.3,6.69758909]
[1724461676281,0.04329408,2752.0,2751.3,3.06297909]
[1724461676474,3.63333,2752.3,2751.1,6.40246185]
[1724461676708,0.04325074,2751.9,2751.3,0.65327004]
[1724461677027,1.12851966,2752.9,2752.0,3.63369]
[1724461677028,3.63265,2752.9,2752.0,3.63369]
[1724461677376,3.63265,2752.9,2752.1,3.63358]
[1724461677716,3.63242,2753.0,2752.2,3.63343]
[1724461677929,0.591362,2752.9,2752.2,3.63343]
[1724461678119,3.63268,2752.8,2751.7,3.6341]
[1724461678419,0.591362,2752.9,2752.0,3.6337]
[1724461678637,0.591362,2752.9,2752.3,3.63322]
[1724461678924,5.91351,2753.1,2752.3,3.63322]
[1724461679273,5.91351,2753.1,2751.9,3.0]
[1724461679274,5.91351,2753.1,2752.4,3.63314]
[1724461679479,2.2812,2753.1,2752.4,3.63314]
[1724461679708,2.2812,2753.1,2752.5,3.63304]
[1724461680130,3.63203,2753.3,2752.6,3.63289]
[1724461680280,0.726379,2753.3,2752.7,3.63275]
[1724461680620,0.726379,2753.3,2752.6,3.63289]
[1724461680621,0.04293587,2753.2,2752.8,3.63266]
[1724461680821,3.63188,2753.4,2752.6,3.63289]
[1724461681130,3.63262,2752.9,2752.3,3.0]
[1724461681293,6.07859,2752.7,2751.8,3.63388]
[1724461681500,3.63315,2752.5,2751.9,3.0]
[1724461681739,3.63321,2752.4,2751.9,3.0]
[1724461681878,3.6750412,2752.4,2751.9,3.0]
[1724461682092,3.63332,2752.3,2751.7,3.0]
[1724461682297,3.63332,2752.3,2751.6,3.63416]
[1724461682298,3.67510787,2752.3,2751.6,3.63416]
[1724461682553,3.63346,2752.2,2751.5,3.63436]
[1724461682844,3.67523179,2752.1,2751.4,3.6345]
[1724461683049,0.04164179,2752.1,2751.5,3.63437]
[1724461683370,0.04164179,2752.1,2751.3,0.65327004]
[1724461683537,0.04164179,2752.1,2751.6,3.63422]
[1724461683713,2.4458,2752.7,2751.6,3.63422]
[1724461683714,3.63294,2752.6,2751.6,4.36109]
[1724461683894,0.04150702,2752.0,2751.7,3.63409]
[1724461684102,3.6332,2752.4,2751.7,3.63409]
[1724461684657,3.63294,2752.6,2751.7,3.63409]
[1724461684815,3.63308,2752.5,2751.9,3.63384]
[1724461685026,2.4458,2752.7,2751.5,3.63436]
[1724461685027,3.63329,2752.4,2751.5,3.63436]
[1724461685234,3.63346,2752.2,2751.6,3.63422]
[1724461685394,7.2666,2752.4,2751.6,3.63422]
[1724461685796,3.63354,2752.2,2751.5,3.63436]
[1724461686023,3.63354,2752.2,2751.6,3.63424]
[1724461686230,4.360223,2752.2,2751.6,3.63424]
[1724461686721,2.4458,2752.1,2751.2,3.7649185]
[1724461686903,2.4458,2752.1,2751.2,0.1302385]
[1724461687134,2.4458,2752.1,2751.6,3.63412]
[1724461687332,2.4458,2752.1,2751.7,3.63402]
[1724461687655,3.63314,2752.5,2752.0,3.6337]
[1724461687656,2.4458,2752.5,2752.0,3.6337]
[1724461687831,0.632336,2752.4,2752.0,3.6337]
[1724461688004,2.4458,2752.5,2752.0,3.6337]
[1724461688653,2.4458,2752.5,2752.1,3.63357]
[1724461688863,2.4458,2752.5,2751.2,0.1302385]
[1724461689154,2.4458,2751.8,2751.3,3.63454]
[1724461689454,0.24458,2751.7,2751.2,0.1302385]
[1724461689599,0.24458,2751.7,2751.2,3.7650085]
[1724461689807,2.4458,2751.8,2751.3,3.63455]
[1724461690069,2.4458,2751.8,2751.3,3.38455]
[1724461690310,2.4458,2751.8,2751.2,0.1302385]
[1724461690621,2.4458,2751.8,2751.1,3.5150485]
[1724461690837,2.4458,2751.8,2751.3,3.63455]
[1724461691045,2.4458,2751.8,2751.4,3.63449]
[1724461691339,0.03951014,2751.7,2751.4,3.63449]
[1724461691648,2.4458,2751.8,2751.3,3.63455]
[1724461691849,2.4458,2751.8,2751.4,3.63449]
[1724461692238,2.69038,2751.8,2751.4,3.63449]
[1724461692413,2.69038,2751.8,2751.2,7.26944]
[1724461692618,2.69038,2751.8,2751.3,3.63461]
[1724461693827,2.69038,2751.8,2751.2,3.63467]
[1724461694029,2.69038,2751.8,2751.2,7.26933]
[1724461694335,2.69038,2751.8,2751.3,3.6346]
[1724461694773,2.69038,2751.8,2751.5,3.63436]
[1724461694988,0.03941397,2751.7,2751.6,3.63423]
[1724461695266,6.07931,2752.2,2751.6,3.63423]
[1724461695267,2.4458,2752.2,2751.6,3.63423]
[1724461695431,2.4458,2752.2,2751.7,3.63409]
[1724461695626,2.4458,2752.2,2751.8,3.63396]
[1724461695822,2.4458,2752.2,2751.9,3.63384]
[1724461696045,2.4458,2752.5,2751.9,3.63384]
[1724461696272,4.265575,2752.4,2751.7,3.63406]
[1724461696652,3.63248,2753.0,2752.3,3.63331]
[1724461696653,6.07828,2753.0,2752.3,3.63331]
[1724461696851,6.07828,2753.0,2751.8,4.23153893]
[1724461696852,2.4458,2753.0,2751.8,4.23153893]
[1724461697050,6.07821,2753.0,2752.3,3.63326]
[1724461697296,2.4458,2753.0,2752.3,3.63323]
[1724461697696,2.4458,2753.0,2752.4,3.63316]
[1724461697898,0.24458,2752.9,2752.3,3.63323]
[1724461698159,0.24458,2752.9,2752.3,3.63322]
[1724461698494,0.0319407,2752.8,2752.3,3.63322]
[1724461699301,0.0319407,2752.8,2752.4,3.63317]
[1724461699677,0.0319407,2752.8,2752.6,3.63292]
[1724461700202,2.4458,2753.0,2752.6,3.63292]
[1724461700507,2.69038,2753.0,2752.6,3.63292]
[1724461700709,0.03217645,2752.9,2752.6,3.63292]
[1724461701491,0.6016244,2752.9,2752.6,3.63292]
[1724461701787,0.6016244,2752.9,2752.8,3.63266]
[1724461703061,0.6016244,2752.9,2752.0,6.63364]
[1724461703062,2.8574244,2752.9,2752.4,3.63319]
[1724461703258,2.57371889,2752.9,2752.4,3.63319]
[1724461705069,2.57371889,2752.9,2752.5,3.63303]
[1724461705414,2.28797645,2752.9,2752.5,7.266]
[1724461705704,0.03217645,2752.9,2752.6,3.63292]
[1724461705913,5.88793,2753.2,2752.6,3.63292]
[1724461706060,5.88793,2753.2,2752.0,6.63366]
[1724461706061,0.03254091,2752.8,2752.3,7.2665]
[1724461706259,3.63228,2753.1,2752.5,3.63304]
[1724461706462,5.88793,2753.2,2752.5,3.63304]
[1724461706463,0.03249759,2752.7,2752.5,3.63304]
[1724461706728,0.952021,2753.0,2752.5,3.63297]
[1724461707219,0.0325723,2752.9,2752.5,3.63299]
[1724461707808,5.88793,2753.2,2752.5,7.26591]
[1724461708117,5.88793,2753.2,2752.6,3.63291]
[1724461708309,0.62146383,2753.1,2752.7,3.63277]
[1724461708576,0.03267083,2753.1,2752.8,3.63255]
[1724461709487,0.03267083,2753.1,2752.5,3.63299]
[1724461709693,0.03267083,2753.1,2752.7,3.6327]
[1724461710537,0.03267083,2753.1,2752.7,7.26541]
[1724461710684,0.03267083,2753.1,2752.7,3.6327]
[1724461711637,0.03267083,2753.1,2753.0,3.6324]
[1724461711781,3.6314,2753.8,2752.7,0.72657]
[1724461711782,2.2558,2753.8,2753.2,3.63201]
[1724461712183,2.82523345,2754.1,2753.5,3.63174]
[1724461712382,2.2558,2754.1,2753.5,3.63174]
[1724461712618,1.333669,2754.0,2753.7,3.63146]
[1724461712805,2.2558,2754.1,2753.6,3.6316]
[1724461713020,7.45,2754.2,2753.6,3.6316]
[1724461713184,7.45,2754.2,2753.7,3.63146]
[1724461713602,7.45,2754.2,2753.8,3.63133]
[1724461713941,3.63069,2754.3,2753.7,3.63147]
[1724461714236,0.588649,2754.2,2753.7,3.63147]
[1724461717698,0.588649,2754.2,2753.7,3.63137]